Cogmind - Beta 9.4 @@@ ROGUE MODE // 2020.03.02 @ 07:53:36 Player: K.Ioz Result: Destroyed by S-10 Pest with Light Assault Rifle Performance ------------- Evolutions (0) 0 Regions Visited (1) 200 Robots Destroyed (11) 55 Value Destroyed (322) 322 Prototype IDs (0) 0 Alien Tech Used (0) 0 Bonus (0) 0 TOTAL SCORE: 577 Bonus ------- None Cogmind --------- Core Integrity 0/250 Matter 300/300 Energy 100/100 System Corruption 1% Temperature Cool (0) Movement Walking (120) Location -10/Materials Parts ------- > --- POWER (1) -------- (None) > --- PROPULSION (2) --- Aluminum Leg > --- UTILITY (2) ------ Visual Processing Unit > --- WEAPON (2) ------- (None) > --- INVENTORY (4) ---- Improved Heat Sink Signal Interpreter Peak State ------------ > --- POWER ------------ Ion Engine > --- PROPULSION ------- Aluminum Leg Aluminum Leg > --- UTILITY ---------- Visual Processing Unit Sensor Array > --- WEAPON ----------- EM Pulse Gun Assault Rifle > --- INVENTORY -------- Aluminum Leg Improved Heat Sink Signal Interpreter Particle Gun [Rating: 8] Favorites ----------- Power Ion Engine Engine Ion Engine Propulsion Aluminum Leg Leg Aluminum Leg Utility Visual Processing Unit Device Sensor Array Processor Visual Processing Unit Weapon EM Pulse Gun Energy Gun EM Pulse Gun Ballistic Gun Assault Rifle Special Weapon Mining Laser Build | -11 -10 ------- Run | Scr Mat Slots Evolved . | . . Power . | . . Propulsion . | . . Utility . | . . Weapon . | . . Parts Attached 12 | 5 7 Power 1 | 1 . Engine 1 | 1 . Core . | . . Reactor . | . . Propulsion 4 | 2 2 Treads . | . . Leg 4 | 2 2 Wheel . | . . Hover . | . . Flight . | . . Utility 2 | . 2 Device 1 | . 1 Storage . | . . Processor 1 | . 1 Hackware . | . . Protection . | . . Artifact . | . . Weapon 5 | 2 3 Energy Gun 1 | 1 . Energy Cannon . | . . Ballistic Gun 3 | 1 2 Ballistic Cannon . | . . Launcher . | . . Special Weapon 1 | . 1 Impact Weapon . | . . Slashing Weapon . | . . Piercing Weapon . | . . Special Melee Weapon . | . . Unidentified Prototypes . | . . Parts Lost 7 | . 7 Power 1 | . 1 Propulsion 2 | . 2 Utility 1 | . 1 Weapon 3 | . 3 Highest Loss Streak 7 | . 7 Average Slot Usage (%) 89 | . 89 Engine 14 | . 14 Leg 28 | . 28 Device 6 | . 6 Processor 12 | . 12 Energy Gun 13 | . 13 Ballistic Gun 7 | . 7 Special Weapon 5 | . 5 Naked Turns . | . . Heaviest Build 10 | 8 10 Greatest Support 20 | 20 20 Greatest Overweight (x) 2 | 2 . Average Overweight (x) . | . . Largest Inventory Capacity 4 | 4 4 Average Capacity 4 | 4 4 Most Carried 4 | 3 4 Average Carried 3 | 1 3 Final Capacity 4 | 4 4 Final Carried 3 | 3 2 Class Distribution -------------------- 100% | Mutant Dominant Class ---------------- Mutant | -10/Materials Resources | -11 -10 ----------- Run | Scr Mat Matter Collected 359 | 245 114 Remotely . | . . Salvage Created 342 | . 342 Parts 30 | . 30 Haulers Intercepted . | . . Recyclers Shooed . | . . Parts Field Recycled . | . . Retrieved Matter . | . . Parts Self-Destructed . | . . Prevented . | . . Kills | -11 -10 ------- Run | Scr Mat Combat Hostiles Destroyed 8 | . 8 Melee 1 | . 1 Guns 5 | . 5 Cannons 1 | . 1 AOE 1 | . 1 Classes Destroyed 4 | . 4 Operator 1 | . 1 Watcher 2 | . 2 Swarmer 1 | . 1 Grunt 7 | . 7 Best Kill Streak 2 | . 2 Combat Bots Only 2 | . 2 Max Kills in Single Turn 2 | . 2 Gunslinging . | . . Exploded 1 | . 1 Melee 1 | . 1 Uniques/NPCs Destroyed . | . . Combat | -11 -10 -------- Run | Scr Mat Damage Taken 736 | . 736 Core 250 | . 250 Absorbed by Shields . | . . Core Remaining (%) 100 | 100 . Volleys Fired 39 | . 39 Largest 2 | . 2 Hottest 120 | . 120 Shots Fired 57 | . 57 Gun 35 | . 35 Cannon . | . . Launcher . | . . Special 22 | . 22 Kinetic 18 | . 18 Thermal 22 | . 22 Explosive . | . . Electromagnetic 17 | . 17 Robot Hit Streak 5 | . 5 Robot Miss Streak 4 | . 4 Penetration Max . | . . Secondary Targets . | . . Shots Hit Robots 20 | . 20 Core Hits 22 | . 22 Critical Hits . | . . Critical Kills . | . . Critical Parts Destroyed . | . . Melee Attacks . | . . Impact . | . . Slashing . | . . Piercing . | . . Sneak Attacks . | . . Combat Hostiles . | . . Follow-up Attacks . | . . Damage Inflicted 378 | . 378 Guns 265 | . 265 Cannons . | . . Explosions 49 | . 49 Melee . | . . Ramming 16 | . 16 Kinetic 143 | . 143 Thermal 97 | . 97 Explosive . | . . Electromagnetic 122 | . 122 Impact . | . . Slashing . | . . Piercing . | . . Highest Corruption 1 | . 1 Average Corruption 1 | . 1 Corruption Purged . | . . Overload Shots . | . . Overflow Damage . | . . Projectiles . | . . Explosions . | . . Melee . | . . Knockbacks . | . . Impact . | . . Kinetic . | . . Secondary . | . . Self-Inflicted Damage 43 | . 43 Shots 1 | . 1 Rammed 7 | . 7 Targets Rammed 15 | . 15 Kicked 8 | . 8 Crushed . | . . Highest Temperature 60 | . 60 Average Temperature 17 | . 17 Received Heat Transfer 150 | . 150 Siege Activations . | . . Robots Corrupted . | . . Combat Hostiles . | . . Parts Fried . | . . Impact Corruptions . | . . Robots Melted . | . . Combat Hostiles . | . . Parts Melted . | . . Heat Transferred 200 | . 200 Parts Sabotaged . | . . Parts Stolen . | . . Parts Stripped . | . . Power Chain Reactions 1 | . 1 Missiles Intercepted . | . . Alert | -11 -10 ------- Run | Scr Mat Peak Influence 142 | . 142 Average Influence 29 | . 30 Maximum Alert Level . | . . Low Security (%) 100 | 100 100 Level 1 . | . . Level 2 . | . . Level 3 . | . . Level 4 . | . . Level 5 . | . . High Security . | . . Max Security . | . . Squads Dispatched 2 | . 2 Investigation . | . . Extermination . | . . Reinforcement 2 | . 2 Assault . | . . Garrison . | . . Intercept . | . . Construction Impeded . | . . Haulers Reinforced . | . . Stealth | -11 -10 --------- Run | Scr Mat Distress Signals 2 | . 2 Communications Jammed . | . . Distress Signals . | . . Times Spotted 20 | . 20 Peak Tracking Total 5 | . 5 Tactical Retreats 1 | . 1 Traps | -11 -10 ------- Run | Scr Mat Traps Triggered . | . . Indirectly . | . . Trap Hack Attempts . | . . Triggered . | . . Disarmed . | . . Reprogrammed . | . . Reused . | . . Traps Extracted . | . . Installed . | . . Triggered . | . . Machines | -11 -10 ---------- Run | Scr Mat Machines Disabled . | . . Max in Single Turn . | . . Machines Sabotaged . | . . Garrisons Compromised . | . . Overloaded Fab Kills . | . . Fab Network Shutdowns . | . . Hacking | -11 -10 --------- Run | Scr Mat Machines Accessed 2 | . 2 Terminals 2 | . 2 Fabricators . | . . Repair Stations . | . . Recycling Units . | . . Scanalyzers . | . . Garrison Access . | . . Total Hacks 5 | . 5 Successful . | . . Failed 5 | . 5 Catastrophic 1 | . 1 Database Lockouts . | . . Manual . | . . Terminals 5 | . 5 Fabricators . | . . Repair Stations . | . . Recycling Units . | . . Scanalyzers . | . . Garrison Access . | . . Terminal Hacks . | . . Fabricator Hacks . | . . Repair Station Hacks . | . . Recycling Unit Hacks . | . . Scanalyzer . | . . Garrison Access Hacks . | . . Unauthorized Hacks . | . . Terminals . | . . Fabricators . | . . Repair Stations . | . . Recycling Units . | . . Scanalyzers . | . . Garrison Access . | . . Data Cores Recovered 1 | . 1 Used . | . . Hacking Detections 2 | . 2 Full Trace Events . | . . Feedback Events . | . . Feedback Blocked . | . . Robot Schematics Acquired . | . . Robots Built . | . . Matter . | . . Time . | . . Total Robot Build Rating . | . . Part Schematics Acquired . | . . Parts Built . | . . Matter . | . . Time . | . . Total Part Build Rating . | . . Parts Repaired . | . . Time . | . . Parts Recycled . | . . Recycled Matter . | . . Retrieved Matter . | . . Retrieved Components . | . . Parts Scanalyzed . | . . Part Schematics Acquired . | . . Parts Damaged . | . . Bothacking | -11 -10 ------------ Run | Scr Mat Used RIF Installer . | . . Robots Hacked . | . . Non-combat . | . . Combat . | . . Robot Hacks Applied . | . . Relay Couplers Released . | . . Robots Rewired . | . . Allies Hacked . | . . Hacks Repelled . | . . Allies | -11 -10 -------- Run | Scr Mat Total Allies . | . . Largest Group . | . . Highest-Rated Group . | . . Highest-Rated Ally . | . . Total Orders . | . . Ally Attacks . | . . Total Damage . | . . Kills . | . . Allies Corrupted . | . . Allies Melted . | . . Intel | -11 -10 ------- Run | Scr Mat Robot Analysis Total . | . . Derelict Logs Recovered . | . . Drone Launches . | . . Drone Recoveries . | . . Exploration | -11 -10 ------------- Run | Scr Mat Turns Passed 1337 | 83 1254 Spaces Moved 493 | 90 403 Core 69 | 69 . Treads . | . . Legs 424 | 21 403 Wheels . | . . Hover . | . . Flight . | . . Fastest Speed 50 | 50 120 Average Speed 113 | 81 120 Slowest Speed 150 | 150 120 Overloaded Moves . | . . Propulsion Burnouts . | . . Robots Hopped . | . . Cave-ins Triggered . | . . Exploration Rate (%) 27 | 4 50 Regions Visited 1 Branch Regions . Pre-discovered Areas . | . . Known Exits Taken . | . . Unknown Exits Taken 1 | 1 . Scrap Searched . | . . Spaces Dug 15 | . 15 Terrain Destroyed 20 | . 20 Melee . | . . Projectile 18 | . 18 AOE 2 | . 2 Actions | -11 -10 --------- Run | Scr Mat Total 1167 | 97 1070 Wait 594 | . 594 Move 492 | 89 403 Hop . | . . Pick Up 9 | 3 6 Fast Attach 7 | 5 2 Attach 2 | . 2 Detach . | . . Swap 3 | . 3 Drop 6 | . 6 Fire 39 | . 39 Melee . | . . Ram . | . . Kick 15 | . 15 Crush . | . . Escape Stasis . | . . Rewire . | . . Trap . | . . Miscellaneous . | . . Route ------- -11/Scrapyard -10/Materials (discovered 1 exit: [*Mat]) History --------- Turn | Location | Event 6 | -11/Scrapyard | Discovered new exit (range 15) 84 | -11/Scrapyard | Entered Materials 313 | -10/Materials | Build established: Mutant 869 | -10/Materials | Discovered new exit (range 18) 1290 | -10/Materials | Core integrity fell below 50% 1332 | -10/Materials | Core integrity fell below 20% 1338 | -10/Materials | Destroyed by S-10 Pest with Light Assault Rifle Last Messages --------------- 01308_ K-01 Serf collects debris. 01318_ Slammed into S-10 Pest. 01319_ Kicked S-10 Pest out of the way. 01320_ Slammed into S-10 Pest. 01321_ Aluminum Leg destroyed. 01322_ Acquired 5 matter. 01322_ Kicked S-10 Pest out of the way. 01325_ Slammed into S-10 Pest. 01325_ Sensor Array destroyed. 01326_ Slammed into S-10 Pest. 01327_ Kicked S-10 Pest out of the way. 01328_ Slammed into S-10 Pest. 01330_ Kicked S-10 Pest out of the way. 01333_ Slammed into S-10 Pest. 01334_ Ion Engine destroyed. 01334_ Aluminum Leg destroyed. 01334_ Slammed into S-10 Pest. 01334_ Destabilizing: System corrupted (+1). 01336_ Kicked S-10 Pest out of the way. 01336_ S-10 Pest destroyed. Map ----- +----------------------------------------------------+ | | | | | | | | | | | | | | | | | ??????????????????????##############?????????????? | | ??????????????????????# ! #?????????????? | | ??????????????????????# """"" #?????????????? | | ??????????????????????# """"""""" #?????????????? | | ?????????????????????## """ """ #?????????????? | | ?????????????????????## ! ######????????? | | ??????????????????###########+###########????????? | | ??????????????????# ^^ #????????? | | ??????????????????# < ^ #????????? | | ??????????????????# ^^ #????????? | | ??????????????????################### #????????? | | ????????????????????????????# ## #????????? | | ????????????????????????????# ## #????????? | | ???????????????????#######??# """ ## ##???????? | | ???????????????????#"""""#??# """ ## ##???##### | | ????????????????####""T""#### """ ## ###### | | ????????????????# %[%= # ## | | ????????????????# ! %%%@ # % ## ####### | | ????????????????# %% ##""+"### #?????# | | ????????????????# """ =%%%s%### #?????# | | ????????????????# """ rs"Y" +% #?????## | | ????????????????# """ """ ### """ #??????# | | ????????????????# #?# """ #??????# | | ????????????????#+####+######?# """ #??????# | | ????????????????????? ??????? #??????# | | ????????????????????# ??????? #??????# | | ????????????????????#???????? """ #??????# | | ???????????????????????????? """ #??????# | | ???????????????????????????? """ #??????# | | ??????????????????????????? #??????#^^^ | | ??????????????????????????? #??????#^^^ | | ?????????????????????????? ?????????# | | ??????????????????????????? ########??????????# | | ??????????????????????????? ??????????????????# | | ??????????????????????????? ??????????????????# | | ??????????????????????????????????????????????# | | ??????????????????????????????????????????????# | | ??????????????????????????????????????????????# | | ????????????????????????????????????????####### | | ????????????????????????????????????????# | | ????????????????????????????????????????# | | ????????????????????????????????????????# | +----------------------------------------------------+ Best States ------------- Heat Dissipation 25 Energy Generation 10 Energy Capacity 250 Matter Stores 300 Matter Capacity 300 Sight Range 18 Robot Scan Range 10 Terrain Scan Density 10 Evasion (%) 50 Item Schematics ----------------- None Robot Schematics ------------------ None Fabricated ------------ Nothing Alien Tech Used ----------------- None Achievements -------------- None Challenges ------------ None Game ------ Seed StormLightningDevice Manual? 0 Play Time 00:14:21 Cumulative 128.7 hours Start 2020.03.02 @ 07:34:57 End 2020.03.02 @ 07:53:36 Sessions 1 Manual Loads 0 Difficulty Rogue Special Mode None Game No. 82 Rogue 64 Adventurer 0 Explorer 18 Win Type - Total 2 Types 2/0/0/0/0/0/0 Lore% 57 Gallery% 58 Achievement% 51 Wizard Run 0 Options --------- ASCII 0 Keyboard 1 Movement Vi Keybinds 0 Fullscreen 1 Font 18/X11Bold Map View 76x50 Tactical HUD 1 Map Filters NONE Filters LOW_CONTRAST(47,30,31)|SHIFT_HUE(60) Steam 1 RUN: 4b2d2e02-5708-4c95-b419-c9846f19c81e